fUST/lending_fUST_20250626
["ID","MTS","AMOUNT","RATE_DAILY","PERIOD"]
[367847231,1750943462435,-2000.0,0.00021136,2]
[367847232,1750943462446,-3000.0,0.0002114,2]
[367847233,1750943462455,-3000.0,0.0002115,2]
[367847234,1750943462466,-151.0,0.00021152,2]
[367847235,1750943462477,-151.0,0.00021152,2]
[367847236,1750943462487,-5000.0,0.00021152,2]
[367847237,1750943462499,-25000.0,0.00021152,2]
[367847238,1750943462509,-3000.0,0.0002116,2]
[367847239,1750943462518,-3000.0,0.0002117,2]
[367847240,1750943462527,-3000.0,0.0002118,2]
[367847241,1750943462537,-244.0,0.00021189,2]
[367847242,1750943462548,-4879.350475,0.0002119,2]
[367847243,1750943462559,-500.0,0.00021193,2]
[367847244,1750943462569,-600.0,0.00021193,2]
[367847245,1750943462579,-571.59680365,0.00021193,2]
[367847246,1750943462588,-500.18674294,0.00021193,2]
[367847247,1750943462598,-600.56496766,0.00021193,2]
[367847248,1750943462608,-521.18889866,0.00021193,2]
[367847249,1750943462618,-500.0,0.00021193,2]
[367847250,1750943462629,-500.0,0.00021193,2]
[367847251,1750943462640,-500.0,0.00021193,2]
[367847252,1750943462653,-342.11807829,0.00021193,2]
[367847253,1750943462662,-504.44988464,0.00021193,2]
[367847254,1750943462671,-500.0,0.00021193,2]
[367847255,1750943462682,-500.33689956,0.00021193,2]
[367847256,1750943462692,-500.0,0.00021193,2]
[367847257,1750943462703,-500.0,0.00021193,2]
[367847258,1750943462713,-500.52155406,0.00021193,2]
[367847259,1750943462722,-649.98537428,0.00021193,2]
[367847260,1750943462732,-500.0,0.00021193,2]
[367847261,1750943462742,-2124.89729441,0.00021245,4]
[367847262,1750943462752,-244.0,0.00021333,2]
[367847263,1750943462763,-460.0,0.00021369,2]
[367847264,1750943462774,-171.1,0.00021369,2]
[367847265,1750943462785,-517.42,0.00021369,2]
[367847266,1750943462795,-500.0,0.00021369,16]
[367847267,1750943462805,-151.0,0.00021369,2]
[367847268,1750943462815,-460.0,0.00021369,2]
[367847269,1750943462825,-1346.99,0.00021369,2]
[367847270,1750943462835,-1008.82,0.00021369,2]
[367847271,1750943462845,-382.08528495,0.00021369,2]
[367847272,1750943462856,-460.0,0.00021369,2]
[367847273,1750943462866,-1808.06,0.00021369,2]
[367847274,1750943462875,-460.0,0.00021369,2]
[367847275,1750943462885,-1293.07,0.00021369,2]
[367847276,1750943462897,-460.0,0.00021369,2]
[367847277,1750943462907,-343.6,0.00021369,2]
[367847278,1750943462917,-460.0,0.00021369,2]
[367847279,1750943462926,-151.0,0.00021369,2]
[367847280,1750943462937,-151.0,0.00021369,2]
[367847281,1750943462946,-542.23,0.00021369,2]
[367847282,1750943462955,-499.07,0.00021369,2]
[367847283,1750943462966,-3162.54,0.00021369,2]
[367847284,1750943462976,-1980.59,0.00021369,2]
[367847285,1750943462985,-3648.48,0.00021369,2]
[367847286,1750943462995,-894.9,0.00021369,2]
[367847287,1750943463004,-225.494757,0.00021369,2]
[367847288,1750943463015,-2426.98,0.00021369,2]
[367847289,1750943463025,-204.626694,0.00021369,2]
[367847290,1750943463036,-635.64,0.00021369,2]
[367847291,1750943463045,-465.97,0.00021369,2]
[367847292,1750943463055,-204.626694,0.00021369,2]
[367847293,1750943463066,-479.31,0.00021369,2]
[367847294,1750943463076,-460.0,0.00021369,2]
[367847295,1750943463086,-607.74,0.00021369,2]
[367847296,1750943463095,-1116.28,0.00021369,2]
[367847297,1750943463105,-1089.95,0.00021369,2]
[367847298,1750943463115,-924.95,0.00021369,2]
[367847299,1750943463124,-913.79,0.00021369,2]
[367847300,1750943463134,-408.95,0.00021369,2]
[367847301,1750943463143,-460.0,0.00021369,2]
[367847302,1750943463152,-151.0,0.00021369,2]
[367847303,1750943463161,-504.67,0.00021369,2]
[367847304,1750943463171,-1366.27,0.00021369,2]
[367847305,1750943463180,-1360.06,0.00021369,2]
[367847306,1750943463190,-460.0,0.00021369,2]
[367847307,1750943463200,-1399.88,0.00021369,2]
[367847308,1750943463209,-884.74,0.00021369,2]
[367847309,1750943463219,-151.0,0.00021369,2]
[367847310,1750943463228,-379.89,0.00021369,2]
[367847311,1750943463237,-151.0,0.00021369,2]
[367847312,1750943463247,-460.0,0.00021369,2]
[367847313,1750943463256,-352.92,0.00021369,2]
[367847314,1750943463266,-151.0,0.00021369,2]
[367847315,1750943463276,-1875.47,0.00021369,2]
[367847316,1750943463286,-151.0,0.00021369,2]
[367847317,1750943463296,-855.51,0.00021369,2]
[367847318,1750943463305,-592.35,0.00021369,2]
[367847319,1750943463314,-512.24,0.00021369,2]
[367847320,1750943463324,-492.54,0.00021369,2]
[367847321,1750943463334,-500.0,0.00021373,2]
[367847322,1750943463344,-500.0,0.00021377,2]
[367847323,1750943463353,-500.0,0.00021377,2]
[367847324,1750943463363,-500.0,0.00021377,2]
[367847325,1750943463373,-501.05088038,0.00021377,2]
[367847326,1750943463383,-500.36054881,0.00021377,2]
[367847327,1750943463392,-500.0,0.00021391,2]
[367847328,1750943463402,-500.0,0.00021391,2]
[367847329,1750943463411,-287.61311026,0.00021391,2]
[367847330,1750943463421,-500.66083934,0.00021391,2]
[367847331,1750943463431,-215.0738,0.00021425,2]
[367847332,1750943463440,-823.0,0.00021454,2]
[367847333,1750943463450,-244.0,0.00021489,2]
[367847334,1750943463459,-244.0,0.0002152,2]
[367847335,1750943463469,-1606.066867,0.00021533,4]
[367847336,1750943463478,-2124.89729441,0.00021555,5]
[367847337,1750943463487,-1500.0,0.00021568,2]
[367847338,1750943463497,-183.436065,0.00021643,2]
[367847339,1750943463506,-370.02,0.00021643,2]
[367847340,1750943463515,-517.42,0.00021643,2]
[367847341,1750943463524,-608.37,0.00021643,2]
[367847342,1750943463533,-1346.99,0.00021643,2]
[367847343,1750943463543,-1008.82,0.00021643,2]
[367847344,1750943463553,-460.0,0.00021643,2]
[367847345,1750943463563,-1808.06,0.00021643,2]
[367847346,1750943463573,-460.0,0.00021643,2]
[367847347,1750943463583,-1293.07,0.00021643,2]
[367847348,1750943463593,-460.0,0.00021643,2]
[367847349,1750943463603,-460.0,0.00021643,2]
[367847350,1750943463613,-542.23,0.00021643,2]
[367847351,1750943463622,-78.80766597,0.00021643,2]
[367847353,1750943563601,500.0,0.00025965,120]
[367847354,1750943614821,301.00692,0.00025965,120]
[367847355,1750943784133,-269.2861185,0.00016123,2]
[367847356,1750943987558,6809.2666034,0.00015821,2]
[367847357,1750944321945,213.007006,0.00013699,2]
[367847360,1750944407005,1200.0,0.00025931,60]
[367847362,1750944499210,206.0,0.00024657,120]
[367847369,1750944568981,1294.0,0.00025931,60]
[367847393,1750944631828,-751.93348569,0.00016228,2]
[367847394,1750944631842,-319.59576877,0.00016228,2]
[367847438,1750944637850,-1158.21950624,0.00016228,2]
[367847440,1750944637859,-300.0,0.00016437,2]
[367847442,1750944637869,-300.0,0.00016437,2]
[367847443,1750944637879,-460.0,0.00016438,2]
[367847445,1750944637888,-460.0,0.00016438,2]
[367847447,1750944637898,-347.14414942,0.00016438,2]
[367847449,1750944637906,-460.0,0.00016438,2]
[367847451,1750944637915,-460.0,0.00016438,2]
[367847452,1750944637925,-460.0,0.00016438,2]
[367847454,1750944637935,-460.0,0.00016438,2]
[367847456,1750944637944,-460.0,0.00016438,2]
[367847458,1750944637953,-460.0,0.00016438,2]
[367847460,1750944637963,-460.0,0.00016438,2]
[367847461,1750944637972,-460.0,0.00016438,2]
[367847462,1750944637981,-460.0,0.00016438,2]
[367847464,1750944637990,-460.0,0.00016438,2]
[367847466,1750944637999,-460.0,0.00016438,2]
[367847468,1750944638008,-282.08767786,0.00016438,2]
[367847471,1750944638020,-177.91232214,0.00016438,2]
[367847473,1750944638030,-460.0,0.00016438,2]
[367847475,1750944638039,-460.0,0.00016438,2]
[367847477,1750944638048,-460.0,0.00016438,2]
[367847479,1750944638057,-460.0,0.00016438,2]
[367847480,1750944638065,-460.0,0.00016438,2]
[367847483,1750944638074,-460.0,0.00016438,2]
[367847485,1750944638084,-460.0,0.00016438,2]
[367847487,1750944638093,-460.0,0.00016438,2]
[367847488,1750944638102,-256.89757172,0.00016438,2]
[367847489,1750944638114,-203.10242828,0.00016438,2]
[367847490,1750944638123,-460.0,0.00016438,2]
[367847491,1750944638132,-340.52210702,0.00016438,2]
[367847492,1750944638143,-119.47789298,0.00016438,2]
[367847493,1750944638153,-460.0,0.00016438,2]
[367847494,1750944638162,-460.0,0.00016438,2]
[367847495,1750944638171,-460.0,0.00016438,2]
[367847496,1750944638181,-460.0,0.00016438,2]
[367847497,1750944638190,-585.13603678,0.00016438,2]
[367847498,1750944638199,-460.0,0.00016438,2]
[367847499,1750944638209,-217.29,0.00016438,2]
[367847500,1750944638218,-460.0,0.00016438,2]
[367847501,1750944638227,-542.68851706,0.00016438,2]
[367847502,1750944638239,-460.0,0.00016438,2]
[367847503,1750944638248,-460.0,0.00016438,2]
[367847504,1750944638257,-460.0,0.00016438,2]
[367847505,1750944638266,-460.0,0.00016438,2]
[367847506,1750944638279,-460.0,0.00016438,2]
[367847507,1750944638288,-460.0,0.00016438,2]
[367847508,1750944638297,-460.0,0.00016438,2]
[367847509,1750944638307,-460.0,0.00016438,2]
[367847510,1750944638525,-460.0,0.00016438,2]
[367847511,1750944638535,-460.0,0.00016438,2]
[367847512,1750944638547,-267.26648522,0.00016438,2]
[367847513,1750944638556,-460.0,0.00016438,2]
[367847514,1750944638566,-460.0,0.00016438,2]
[367847515,1750944638575,-460.0,0.00016438,2]
[367847516,1750944638585,-460.0,0.00016438,2]
[367847517,1750944638594,-460.0,0.00016438,2]
[367847518,1750944638603,-460.0,0.00016438,2]
[367847519,1750944638613,-460.0,0.00016438,2]
[367847520,1750944638624,-460.0,0.00016438,2]
[367847521,1750944638634,-460.0,0.00016438,2]
[367847522,1750944638643,-460.0,0.00016438,2]
[367847523,1750944638652,-460.0,0.00016438,2]
[367847524,1750944638660,-460.0,0.00016438,2]
[367847525,1750944638670,-460.0,0.00016438,2]
[367847526,1750944638679,-460.0,0.00016438,2]
[367847527,1750944638688,-460.0,0.00016438,2]
[367847528,1750944638699,-460.0,0.00016438,2]
[367847529,1750944638708,-482.91,0.00016438,2]
[367847530,1750944638718,-460.0,0.00016438,2]
[367847531,1750944638727,-603.24,0.00016438,2]
[367847532,1750944638738,-460.0,0.00016438,2]
[367847533,1750944638748,-460.0,0.00016438,2]
[367847534,1750944638757,-460.0,0.00016438,2]
[367847535,1750944638766,-460.0,0.00016438,2]
[367847536,1750944638775,-460.0,0.00016438,2]
[367847537,1750944638786,-460.0,0.00016438,2]
[367847538,1750944638795,-460.0,0.00016438,2]
[367847539,1750944638804,-460.0,0.00016438,2]
[367847540,1750944638814,-489.41,0.00016438,2]
[367847541,1750944638823,-460.0,0.00016438,2]
[367847542,1750944638832,-460.0,0.00016438,2]
[367847543,1750944638842,-460.0,0.00016438,2]
[367847544,1750944638851,-460.0,0.00016438,2]
[367847545,1750944638860,-268.94455598,0.00016438,2]
[367847546,1750944638869,-460.0,0.00016438,2]
[367847547,1750944638878,-460.0,0.00016438,2]
[367847548,1750944638888,-460.0,0.00016438,2]
[367847549,1750944638897,-460.0,0.00016438,2]
[367847550,1750944638906,-460.0,0.00016438,2]
[367847551,1750944638916,-577.42,0.00016438,2]
[367847552,1750944638928,-907.91,0.00016438,2]
[367847553,1750944638939,-460.0,0.00016438,2]
[367847554,1750944638950,-460.0,0.00016438,2]
[367847555,1750944638959,-460.0,0.00016438,2]
[367847556,1750944638969,-589.94271838,0.00016438,2]
[367847557,1750944638979,-460.0,0.00016438,2]
[367847558,1750944638988,-460.0,0.00016438,2]
[367847559,1750944638998,-460.0,0.00016438,2]
[367847560,1750944639007,-617.47,0.00016438,2]
[367847561,1750944639016,-211.71745892,0.00016438,2]
[367847562,1750944639025,-2253.83,0.00016438,2]
[367847563,1750944639035,-1075.68,0.00016438,2]
[367847564,1750944639046,-460.0,0.00016438,2]
[367847565,1750944639055,-460.0,0.00016438,2]
[367847566,1750944639064,-460.0,0.00016438,2]
[367847567,1750944639074,-460.0,0.00016438,2]
[367847568,1750944639084,-460.0,0.00016438,2]
[367847569,1750944639093,-1429.25,0.00016438,2]
[367847570,1750944639102,-460.0,0.00016438,2]
[367847571,1750944639111,-460.0,0.00016438,2]
[367847572,1750944639121,-225.74752613,0.00016438,2]
[367847573,1750944639131,-538.26,0.00016438,2]
[367847574,1750944639141,-460.0,0.00016438,2]
[367847575,1750944639151,-463.43,0.00016438,2]
[367847576,1750944639160,-460.0,0.00016438,2]
[367847577,1750944639170,-460.0,0.00016438,2]
[367847578,1750944639179,-1729.66,0.00016438,2]
[367847579,1750944639189,-460.0,0.00016438,2]
[367847580,1750944639199,-460.0,0.00016438,2]
[367847581,1750944639210,-632.34,0.00016438,2]
[367847582,1750944639219,-460.0,0.00016438,2]
[367847583,1750944639229,-460.0,0.00016438,2]
[367847584,1750944639238,-460.0,0.00016438,2]
[367847585,1750944639249,-474.54,0.00016438,2]
[367847586,1750944639258,-460.0,0.00016438,2]
[367847587,1750944639268,-460.0,0.00016438,2]
[367847588,1750944639281,-460.0,0.00016438,2]
[367847589,1750944639290,-460.0,0.00016438,2]
[367847590,1750944639300,-460.0,0.00016438,2]
[367847591,1750944639309,-460.0,0.00016438,2]
[367847592,1750944639319,-460.0,0.00016438,2]
[367847594,1750944639328,-849.72,0.00016438,2]
[367847595,1750944639337,-460.0,0.00016438,2]
[367847596,1750944639347,-460.0,0.00016438,2]
[367847597,1750944639357,-494.3,0.00016438,2]
[367847598,1750944639367,-460.0,0.00016438,2]
[367847599,1750944639376,-460.0,0.00016438,2]
[367847600,1750944639385,-460.0,0.00016438,2]
[367847601,1750944639395,-460.0,0.00016438,2]
[367847602,1750944639404,-460.0,0.00016438,2]
[367847603,1750944639413,-460.0,0.00016438,2]
[367847604,1750944639423,-460.0,0.00016438,2]
[367847612,1750944639589,-753.14,0.00016438,2]
[367847614,1750944639599,-460.0,0.00016438,2]
[367847617,1750944639609,-770.6,0.00016438,2]
[367847619,1750944639618,-460.0,0.00016438,2]
[367847621,1750944639628,-460.0,0.00016438,2]
[367847623,1750944639637,-591.75,0.00016438,2]
[367847625,1750944639646,-460.0,0.00016438,2]
[367847627,1750944639655,-460.0,0.00016438,2]
[367847629,1750944639665,-460.0,0.00016438,2]
[367847630,1750944639674,-460.0,0.00016438,2]
[367847633,1750944639683,-460.0,0.00016438,2]
[367847635,1750944639693,-460.0,0.00016438,2]
[367847637,1750944639703,-460.0,0.00016438,2]
[367847639,1750944639711,-460.0,0.00016438,2]
[367847641,1750944639721,-460.0,0.00016438,2]
[367847642,1750944639730,-460.0,0.00016438,2]
[367847645,1750944639739,-460.0,0.00016438,2]
[367847647,1750944639749,-460.0,0.00016438,2]
[367847648,1750944639758,-460.0,0.00016438,2]
[367847650,1750944639767,-460.0,0.00016438,2]
[367847652,1750944639776,-460.0,0.00016438,2]
[367847655,1750944639785,-460.0,0.00016438,2]
[367847657,1750944639794,-460.0,0.00016438,2]
[367847659,1750944639803,-460.0,0.00016438,2]
[367847660,1750944639812,-498.32,0.00016438,2]
[367847662,1750944639821,-460.0,0.00016438,2]
[367847665,1750944639833,-460.0,0.00016438,2]
[367847667,1750944639842,-460.0,0.00016438,2]
[367847669,1750944639852,-460.0,0.00016438,2]
[367847671,1750944639861,-460.0,0.00016438,2]
[367847673,1750944639870,-806.48,0.00016438,2]
[367847675,1750944639879,-460.0,0.00016438,2]
[367847676,1750944639888,-970.4,0.00016438,2]
[367847678,1750944639897,-460.0,0.00016438,2]
[367847681,1750944639907,-460.0,0.00016438,2]
[367847683,1750944639917,-460.0,0.00016438,2]
[367847685,1750944639927,-460.0,0.00016438,2]
[367847687,1750944639937,-460.0,0.00016438,2]
[367847689,1750944639946,-460.0,0.00016438,2]
[367847691,1750944639954,-460.0,0.00016438,2]
[367847692,1750944639963,-460.0,0.00016438,2]
[367847694,1750944639972,-460.0,0.00016438,2]
[367847696,1750944639981,-1497.63,0.00016438,2]
[367847698,1750944639990,-498.72,0.00016702,3]
[367847701,1750944639999,-249.36,0.00016702,3]
[367847703,1750944640009,-748.08,0.00016702,3]
[367847704,1750944640018,-397.97012768,0.00016711,2]
[367847707,1750944640027,-460.0,0.00016712,2]
[367847709,1750944640037,-460.0,0.00016712,2]
[367847711,1750944640046,-494.3980349,0.00016712,2]
[367847713,1750944640055,-460.0,0.00016712,2]
[367847714,1750944640064,-460.0,0.00016712,2]
[367847717,1750944640073,-460.0,0.00016712,2]
[367847719,1750944640083,-460.0,0.00016712,2]
[367847721,1750944640092,-460.0,0.00016712,2]
[367847723,1750944640101,-460.0,0.00016712,2]
[367847724,1750944640110,-460.0,0.00016712,2]
[367847726,1750944640119,-460.0,0.00016712,2]
[367847728,1750944640129,-460.0,0.00016712,2]
[367847731,1750944640138,-460.0,0.00016712,2]
[367847733,1750944640147,-460.0,0.00016712,2]
[367847735,1750944640156,-460.0,0.00016712,2]
[367847737,1750944640166,-460.0,0.00016712,2]
[367847739,1750944640175,-460.0,0.00016712,2]
[367847741,1750944640184,-460.0,0.00016712,2]
[367847743,1750944640194,-460.0,0.00016712,2]
[367847745,1750944640203,-460.0,0.00016712,2]
[367847747,1750944640212,-460.0,0.00016712,2]
[367847748,1750944640221,-460.0,0.00016712,2]
[367847750,1750944640230,-460.0,0.00016712,2]
[367847752,1750944640239,-460.0,0.00016712,2]
[367847754,1750944640249,-460.0,0.00016712,2]
[367847757,1750944640258,-460.0,0.00016712,2]
[367847759,1750944640268,-460.0,0.00016712,2]
[367847760,1750944640281,-460.0,0.00016712,2]
[367847762,1750944640290,-460.0,0.00016712,2]
[367847765,1750944640300,-460.0,0.00016712,2]
[367847767,1750944640310,-460.0,0.00016712,2]
[367847769,1750944640321,-460.0,0.00016712,2]
[367847771,1750944640331,-460.0,0.00016712,2]
[367847772,1750944640342,-460.0,0.00016712,2]
[367847774,1750944640351,-460.0,0.00016712,2]
[367847777,1750944640362,-460.0,0.00016712,2]
[367847778,1750944640372,-460.0,0.00016712,2]
[367847780,1750944640381,-460.0,0.00016712,2]
[367847783,1750944640391,-460.0,0.00016712,2]
[367847784,1750944640400,-484.57246519,0.00016712,2]
[367847787,1750944640410,-193.37032881,0.00016712,2]
[367847788,1750944640420,-460.0,0.00016712,2]
[367847790,1750944640429,-460.0,0.00016712,2]
[367847792,1750944640438,-460.0,0.00016712,2]
[367847794,1750944640447,-460.0,0.00016712,2]
[367847797,1750944640456,-460.0,0.00016712,2]
[367847799,1750944640465,-460.0,0.00016712,2]
[367847801,1750944640474,-460.0,0.00016712,2]
[367847803,1750944640484,-460.0,0.00016712,2]
[367847805,1750944640494,-460.0,0.00016712,2]
[367847806,1750944640504,-460.0,0.00016712,2]
[367847808,1750944640513,-460.0,0.00016712,2]
[367847810,1750944640523,-460.0,0.00016712,2]
[367847812,1750944640532,-460.0,0.00016712,2]
[367847814,1750944640541,-460.0,0.00016712,2]
[367847817,1750944640551,-460.0,0.00016712,2]
[367847819,1750944640560,-489.41,0.00016712,2]
[367847821,1750944640569,-460.0,0.00016712,2]
[367847822,1750944640578,-169.97346394,0.00016712,2]
[367847825,1750944640588,-460.0,0.00016712,2]
[367847827,1750944640597,-460.0,0.00016712,2]
[367847828,1750944640607,-460.0,0.00016712,2]
[367847831,1750944640617,-460.0,0.00016712,2]
[367847832,1750944640626,-460.0,0.00016712,2]
[367847835,1750944640636,-460.0,0.00016712,2]
[367847837,1750944640645,-577.42,0.00016712,2]
[367847838,1750944640655,-907.91,0.00016712,2]
[367847840,1750944640664,-460.0,0.00016712,2]
[367847842,1750944640673,-460.0,0.00016712,2]
[367847844,1750944640682,-460.0,0.00016712,2]
[367847846,1750944640691,-460.0,0.00016712,2]
[367847848,1750944640700,-460.0,0.00016712,2]
[367847850,1750944640709,-460.0,0.00016712,2]
[367847852,1750944640719,-617.47,0.00016712,2]
[367847854,1750944640728,-1075.68,0.00016712,2]
[367847856,1750944640737,-2253.83,0.00016712,2]
[367847859,1750944640747,-460.0,0.00016712,2]
[367847860,1750944640756,-460.0,0.00016712,2]
[367847862,1750944640765,-1429.25,0.00016712,2]
[367847865,1750944640774,-460.0,0.00016712,2]
[367847867,1750944640783,-460.0,0.00016712,2]
[367847868,1750944640792,-538.26,0.00016712,2]
[367847870,1750944640801,-460.0,0.00016712,2]
[367847872,1750944640810,-463.43,0.00016712,2]
[367847875,1750944640819,-460.0,0.00016712,2]
[367847877,1750944640829,-185.44424097,0.00016712,2]
[367847879,1750944640839,-1729.66,0.00016712,2]
[367847880,1750944640848,-460.0,0.00016712,2]
[367847882,1750944640856,-460.0,0.00016712,2]
[367847884,1750944640867,-632.34,0.00016712,2]
[367847886,1750944640876,-460.0,0.00016712,2]
[367847888,1750944640885,-460.0,0.00016712,2]
[367847890,1750944640894,-474.54,0.00016712,2]
[367847892,1750944640903,-460.0,0.00016712,2]
[367847894,1750944640912,-460.0,0.00016712,2]
[367847896,1750944640921,-460.0,0.00016712,2]
[367847898,1750944640931,-849.72,0.00016712,2]
[367847900,1750944640940,-460.0,0.00016712,2]
[367847902,1750944640949,-460.0,0.00016712,2]
[367847904,1750944640959,-494.3,0.00016712,2]
[367847906,1750944640968,-460.0,0.00016712,2]
[367847909,1750944640978,-460.0,0.00016712,2]
[367847911,1750944640987,-460.0,0.00016712,2]
[367847913,1750944640996,-460.0,0.00016712,2]
[367847914,1750944641006,-460.0,0.00016712,2]
[367847917,1750944641015,-460.0,0.00016712,2]
[367847918,1750944641024,-460.0,0.00016712,2]
[367847920,1750944641033,-753.14,0.00016712,2]
[367847922,1750944641042,-460.0,0.00016712,2]
[367847924,1750944641052,-770.6,0.00016712,2]
[367847926,1750944641061,-460.0,0.00016712,2]
[367847928,1750944641071,-460.0,0.00016712,2]
[367847931,1750944641081,-591.75,0.00016712,2]
[367847933,1750944641091,-460.0,0.00016712,2]
[367847935,1750944641101,-460.0,0.00016712,2]
[367847937,1750944641111,-460.0,0.00016712,2]
[367847938,1750944641120,-460.0,0.00016712,2]
[367847940,1750944641129,-460.0,0.00016712,2]
[367847942,1750944641138,-460.0,0.00016712,2]
[367847944,1750944641147,-460.0,0.00016712,2]
[367847946,1750944641155,-460.0,0.00016712,2]
[367847948,1750944641165,-460.0,0.00016712,2]
[367847950,1750944641174,-460.0,0.00016712,2]
[367847952,1750944641183,-460.0,0.00016712,2]
[367847954,1750944641193,-460.0,0.00016712,2]
[367847956,1750944641202,-460.0,0.00016712,2]
[367847958,1750944641212,-460.0,0.00016712,2]
[367847960,1750944641221,-460.0,0.00016712,2]
[367847962,1750944641230,-460.0,0.00016712,2]
[367847964,1750944641239,-460.0,0.00016712,2]
[367847966,1750944641249,-460.0,0.00016712,2]
[367847968,1750944641258,-460.0,0.00016712,2]
[367847970,1750944641267,-806.48,0.00016712,2]
[367847972,1750944641280,-460.0,0.00016712,2]
[367847974,1750944641289,-970.4,0.00016712,2]
[367847976,1750944641298,-460.0,0.00016712,2]
[367847978,1750944641307,-460.0,0.00016712,2]
[367847980,1750944641319,-460.0,0.00016712,2]
[367847982,1750944641328,-460.0,0.00016712,2]
[367847984,1750944641338,-460.0,0.00016712,2]
[367847986,1750944641348,-460.0,0.00016712,2]
[367847988,1750944641362,-460.0,0.00016712,2]
[367847990,1750944641371,-460.0,0.00016712,2]
[367847992,1750944641380,-460.0,0.00016712,2]
[367847994,1750944641390,-1497.63,0.00016712,2]
[367847996,1750944641399,-1825.61713839,0.000169,2]
[367847997,1750944641408,-460.0,0.00016986,2]
[367847999,1750944641417,-460.0,0.00016986,2]
[367848001,1750944641426,-460.0,0.00016986,2]
[367848003,1750944641435,-460.0,0.00016986,2]
[367848005,1750944641445,-460.0,0.00016986,2]
[367848007,1750944641454,-460.0,0.00016986,2]
[367848009,1750944641465,-460.0,0.00016986,2]
[367848011,1750944641475,-460.0,0.00016986,2]
[367848013,1750944641484,-460.0,0.00016986,2]
[367848015,1750944641493,-460.0,0.00016986,2]
[367848017,1750944641503,-460.0,0.00016986,2]
[367848019,1750944641513,-460.0,0.00016986,2]
[367848021,1750944641522,-209.01102194,0.00016986,2]
[367848023,1750944641531,-460.0,0.00016986,2]
[367848025,1750944641540,-460.0,0.00016986,2]
[367848027,1750944641549,-460.0,0.00016986,2]
[367848029,1750944641559,-537.50040917,0.00016986,2]
[367848031,1750944641568,-460.0,0.00016986,2]
[367848033,1750944641576,-460.0,0.00016986,2]
[367848035,1750944641586,-460.0,0.00016986,2]
[367848037,1750944641596,-460.0,0.00016986,2]
[367848038,1750944641606,-460.0,0.00016986,2]
[367848040,1750944641616,-460.0,0.00016986,2]
[367848042,1750944641626,-460.0,0.00016986,2]
[367848044,1750944641635,-460.0,0.00016986,2]
[367848046,1750944641644,-460.0,0.00016986,2]
[367848048,1750944641653,-412.23269121,0.00016986,2]
[367848050,1750944641662,-460.0,0.00016986,2]
[367848052,1750944641672,-460.0,0.00016986,2]
[367848054,1750944641681,-460.0,0.00016986,2]
[367848056,1750944641690,-460.0,0.00016986,2]
[367848058,1750944641699,-460.0,0.00016986,2]
[367848060,1750944641708,-460.0,0.00016986,2]